[Event "*** SCC Grand Prix: Titled Tuesday Blitz"]
[Site "Chess.com"]
[Date "2020.07.07"]
[Round "3"]
[White "Klavdia_Nik"]
[Black "MacDaddyMac"]
[Result "0-1"]
[WhiteElo "2074"]
[BlackElo "2311"]
[TimeControl "180+1"]
[EndTime "10:30:16 PDT"]
[Termination "MacDaddyMac won on time"]

1. Nf3 {[%clk 0:03:00.9]} 1... d5 {[%clk 0:02:58.8]} 2. c4 {[%clk 0:03:00.8]}
2... e6 {[%clk 0:02:58.4]} 3. b3 {[%clk 0:02:59.1]} 3... Nf6 {[%clk 0:02:58]} 4.
Bb2 {[%clk 0:02:58.2]} 4... c5 {[%clk 0:02:58.3]} 5. g3 {[%clk 0:02:58.2]} 5...
Nc6 {[%clk 0:02:57.6]} 6. Bg2 {[%clk 0:02:57.2]} 6... Be7 {[%clk 0:02:57.1]} 7.
O-O {[%clk 0:02:56.8]} 7... O-O {[%clk 0:02:57.2]} 8. d3 {[%clk 0:02:57.3]} 8...
d4 {[%clk 0:02:56]} 9. Nbd2 {[%clk 0:02:56.2]} 9... e5 {[%clk 0:02:52.9]} 10. b4
{[%clk 0:02:55.8]} 10... cxb4 {[%clk 0:02:47.6]} 11. a3 {[%clk 0:02:55.1]} 11...
bxa3 {[%clk 0:02:47.2]} 12. Bxa3 {[%clk 0:02:55]} 12... Bxa3 {[%clk 0:02:47.3]}
13. Rxa3 {[%clk 0:02:54.3]} 13... Qe7 {[%clk 0:02:46]} 14. Ra1 {[%clk
0:02:46.2]} 14... Nd7 {[%clk 0:02:45.1]} 15. Qa4 {[%clk 0:02:37.5]} 15... Nc5
{[%clk 0:02:43.4]} 16. Qa3 {[%clk 0:02:38]} 16... f6 {[%clk 0:02:33.7]} 17. Rfb1
{[%clk 0:02:35.6]} 17... Bg4 {[%clk 0:02:28.5]} 18. h3 {[%clk 0:02:35]} 18...
Be6 {[%clk 0:02:17.8]} 19. Nb3 {[%clk 0:02:28.3]} 19... Nxb3 {[%clk 0:02:14]}
20. Qxe7 {[%clk 0:02:23.1]} 20... Nxe7 {[%clk 0:02:14.9]} 21. Rxb3 {[%clk
0:02:23]} 21... b6 {[%clk 0:02:09.1]} 22. Nxe5 {[%clk 0:02:08.5]} 22... fxe5
{[%clk 0:02:08.1]} 23. Bxa8 {[%clk 0:02:08]} 23... Rxa8 {[%clk 0:02:07.3]} 24.
Rxb6 {[%clk 0:02:08.1]} 24... Bxh3 {[%clk 0:02:05.9]} 25. Rb7 {[%clk 0:02:05.3]}
25... Nc6 {[%clk 0:01:03.1]} 26. f3 {[%clk 0:01:42.8]} 26... a5 {[%clk
0:00:26.6]} 27. g4 {[%clk 0:01:35.1]} 27... h5 {[%clk 0:00:26.4]} 28. Rc7 {[%clk
0:01:33.5]} 28... Nb4 {[%clk 0:00:21.9]} 29. Rb7 {[%clk 0:01:21.7]} 29... Nc2
{[%clk 0:00:19.9]} 30. Ra2 {[%clk 0:01:18.3]} 30... Ne3 {[%clk 0:00:19]} 31.
gxh5 {[%clk 0:01:13.4]} 31... a4 {[%clk 0:00:17.4]} 32. Rb5 {[%clk 0:00:45.4]}
32... Re8 {[%clk 0:00:07.7]} 33. Rxa4 {[%clk 0:00:43.1]} 33... Bd7 {[%clk
0:00:07.5]} 34. Raa5 {[%clk 0:00:33.2]} 34... Bxb5 {[%clk 0:00:07.2]} 35. Rxb5
{[%clk 0:00:33.7]} 35... Kf7 {[%clk 0:00:07.8]} 36. Rb6 {[%clk 0:00:31]} 36...
Re6 {[%clk 0:00:06.5]} 37. Rb7+ {[%clk 0:00:27]} 37... Kf6 {[%clk 0:00:06.6]}
38. Kf2 {[%clk 0:00:25.9]} 38... Nf5 {[%clk 0:00:05.8]} 39. Rb8 {[%clk
0:00:13.6]} 39... Kg5 {[%clk 0:00:04.7]} 40. Rh8 {[%clk 0:00:13.5]} 40... Rh6
{[%clk 0:00:03.2]} 41. Re8 {[%clk 0:00:11.9]} 41... Kf4 {[%clk 0:00:03.4]} 42.
c5 {[%clk 0:00:09.6]} 42... Rxh5 {[%clk 0:00:03.7]} 43. c6 {[%clk 0:00:09.2]}
43... Rh2+ {[%clk 0:00:03]} 44. Ke1 {[%clk 0:00:08.5]} 44... Ke3 {[%clk
0:00:02.9]} 45. Kd1 {[%clk 0:00:07.7]} 45... Rh1+ {[%clk 0:00:02.8]} 46. Kc2
{[%clk 0:00:07.2]} 46... Kxe2 {[%clk 0:00:03]} 47. c7 {[%clk 0:00:06.8]} 47...
Ne3+ {[%clk 0:00:03.9]} 48. Kb2 {[%clk 0:00:06.1]} 48... Nd1+ {[%clk 0:00:03.7]}
49. Kb3 {[%clk 0:00:04.3]} 49... Nc3 {[%clk 0:00:03.7]} 50. c8=Q {[%clk
0:00:03.6]} 50... Kxd3 {[%clk 0:00:04.2]} 51. Qf5+ {[%clk 0:00:02]} 51... Kd2
{[%clk 0:00:05.1]} 52. Qg6 {[%clk 0:00:01.5]} 52... Rb1+ {[%clk 0:00:04.9]} 53.
Kc4 {[%clk 0:00:01.8]} 53... Rb4+ {[%clk 0:00:05.6]} 54. Kxb4 {[%clk 0:00:01.8]}
54... Na2+ {[%clk 0:00:06.5]} 55. Kc5 {[%clk 0:00:02.2]} 55... d3 {[%clk
0:00:06.3]} 56. Kc6 {[%clk 0:00:02.6]} 56... Nb4+ {[%clk 0:00:06]} 57. Kb5
{[%clk 0:00:02.2]} 57... Nd5 {[%clk 0:00:06.9]} 58. Rd8 {[%clk 0:00:02.3]} 58...
Nc3+ {[%clk 0:00:07.1]} 59. Kb4 {[%clk 0:00:02.1]} 59... Kc2 {[%clk 0:00:08]}
60. Kc4 {[%clk 0:00:02.1]} 60... Kb2 {[%clk 0:00:08.9]} 0-1

[Event "*** SCC Grand Prix: Titled Tuesday Blitz"]
[Site "Chess.com"]
[Date "2020.07.07"]
[Round "3"]
[White "Leonid_Starozhilov"]
[Black "rynos0411"]
[Result "0-1"]
[WhiteElo "2640"]
[BlackElo "2434"]
[TimeControl "180+1"]
[EndTime "10:30:17 PDT"]
[Termination "rynos0411 won on time"]

1. e4 {[%clk 0:03:00.9]} 1... c6 {[%clk 0:02:59.3]} 2. d3 {[%clk 0:02:59.9]}
2... d5 {[%clk 0:03:00.2]} 3. Nd2 {[%clk 0:03:00.7]} 3... g6 {[%clk 0:02:59.1]}
4. h4 {[%clk 0:03:00.8]} 4... h5 {[%clk 0:02:55.4]} 5. Ngf3 {[%clk 0:02:59.6]}
5... Bg7 {[%clk 0:02:54.1]} 6. d4 {[%clk 0:02:57.2]} 6... dxe4 {[%clk
0:02:53.5]} 7. Nxe4 {[%clk 0:02:57.3]} 7... Nf6 {[%clk 0:02:54.4]} 8. Neg5
{[%clk 0:02:52.8]} 8... Bf5 {[%clk 0:02:52]} 9. Bc4 {[%clk 0:02:50.5]} 9... e6
{[%clk 0:02:49.5]} 10. c3 {[%clk 0:02:43.2]} 10... Nbd7 {[%clk 0:02:49]} 11. Bf4
{[%clk 0:02:41.8]} 11... O-O {[%clk 0:02:46.1]} 12. Ne5 {[%clk 0:02:40.1]} 12...
Nxe5 {[%clk 0:02:45.7]} 13. Bxe5 {[%clk 0:02:40]} 13... Nd5 {[%clk 0:02:45.3]}
14. Bxg7 {[%clk 0:02:35.6]} 14... Kxg7 {[%clk 0:02:45.4]} 15. Qe2 {[%clk
0:02:27.7]} 15... Qd6 {[%clk 0:02:29.3]} 16. Bxd5 {[%clk 0:02:14.5]} 16... Qxd5
{[%clk 0:02:28.9]} 17. O-O {[%clk 0:02:05.5]} 17... Rfd8 {[%clk 0:02:26.5]} 18.
Rfe1 {[%clk 0:02:03]} 18... c5 {[%clk 0:02:22.3]} 19. dxc5 {[%clk 0:01:42.3]}
19... Qxc5 {[%clk 0:02:23.2]} 20. Nf3 {[%clk 0:01:32.4]} 20... Rd5 {[%clk
0:02:18.9]} 21. Nd4 {[%clk 0:01:27.2]} 21... Rad8 {[%clk 0:02:17.6]} 22. Qe3
{[%clk 0:01:11.8]} 22... Qe7 {[%clk 0:02:12.2]} 23. Qg3 {[%clk 0:01:03.1]} 23...
Qf6 {[%clk 0:02:08.7]} 24. Rad1 {[%clk 0:00:53.4]} 24... e5 {[%clk 0:02:00.8]}
25. Nxf5+ {[%clk 0:00:47.5]} 25... Qxf5 {[%clk 0:02:01.7]} 26. Rxd5 {[%clk
0:00:46]} 26... Rxd5 {[%clk 0:02:02.6]} 27. Qe3 {[%clk 0:00:40.3]} 27... b6
{[%clk 0:01:48.1]} 28. c4 {[%clk 0:00:37.5]} 28... Rc5 {[%clk 0:01:45.8]} 29. b3
{[%clk 0:00:36.8]} 29... Qc2 {[%clk 0:01:31.2]} 30. Re2 {[%clk 0:00:32.9]} 30...
Qd1+ {[%clk 0:01:31]} 31. Kh2 {[%clk 0:00:32.3]} 31... Qd8 {[%clk 0:01:31.5]}
32. g3 {[%clk 0:00:25.9]} 32... Qc7 {[%clk 0:01:29.2]} 33. Rd2 {[%clk
0:00:25.2]} 33... b5 {[%clk 0:01:27.7]} 34. Rd7 {[%clk 0:00:17.1]} 34... Qb6
{[%clk 0:00:57.6]} 35. Qf3 {[%clk 0:00:12.6]} 35... Qe6 {[%clk 0:00:54.1]} 36.
Rd5 {[%clk 0:00:04.7]} 36... Rxd5 {[%clk 0:00:49.9]} 37. cxd5 {[%clk 0:00:05.6]}
37... Qd6 {[%clk 0:00:49.9]} 38. Qd3 {[%clk 0:00:06.3]} 38... a6 {[%clk
0:00:47.7]} 39. a4 {[%clk 0:00:06.8]} 39... bxa4 {[%clk 0:00:47.2]} 40. bxa4
{[%clk 0:00:07.7]} 40... f5 {[%clk 0:00:47.5]} 41. Qc4 {[%clk 0:00:07.9]} 41...
Kf6 {[%clk 0:00:46.8]} 42. Kg2 {[%clk 0:00:07.7]} 42... e4 {[%clk 0:00:46.4]}
43. Qd4+ {[%clk 0:00:08.1]} 43... Kf7 {[%clk 0:00:42.5]} 44. f3 {[%clk
0:00:08.6]} 44... exf3+ {[%clk 0:00:39.4]} 45. Kxf3 {[%clk 0:00:09.5]} 45...
Qa3+ {[%clk 0:00:36.5]} 46. Kg2 {[%clk 0:00:07.8]} 46... Qa2+ {[%clk 0:00:35.8]}
47. Kh3 {[%clk 0:00:07.3]} 47... Qe2 {[%clk 0:00:32.2]} 48. d6 {[%clk
0:00:04.3]} 48... Qg4+ {[%clk 0:00:30.6]} 49. Qxg4 {[%clk 0:00:04.7]} 49...
fxg4+ {[%clk 0:00:30.6]} 50. Kg2 {[%clk 0:00:04.9]} 50... Ke6 {[%clk 0:00:31.1]}
51. Kf2 {[%clk 0:00:05.6]} 51... Kxd6 {[%clk 0:00:32]} 52. Ke3 {[%clk 0:00:06]}
52... Kc5 {[%clk 0:00:32.1]} 53. Kf4 {[%clk 0:00:05.3]} 53... Kb4 {[%clk
0:00:32.6]} 54. Kg5 {[%clk 0:00:06.2]} 54... Kxa4 {[%clk 0:00:33.4]} 55. Kxg6
{[%clk 0:00:07.1]} 55... Kb3 {[%clk 0:00:32]} 56. Kxh5 {[%clk 0:00:08]} 56... a5
{[%clk 0:00:32.9]} 57. Kxg4 {[%clk 0:00:07.9]} 57... a4 {[%clk 0:00:33.8]} 58.
Kg5 {[%clk 0:00:08.4]} 58... a3 {[%clk 0:00:34.7]} 59. Kg6 {[%clk 0:00:08.8]}
59... a2 {[%clk 0:00:35.6]} 60. g4 {[%clk 0:00:09.7]} 60... a1=Q {[%clk
0:00:36.5]} 61. g5 {[%clk 0:00:10]} 61... Kc4 {[%clk 0:00:31.4]} 62. h5 {[%clk
0:00:09.3]} 62... Kd5 {[%clk 0:00:31.8]} 63. Kf7 {[%clk 0:00:07]} 63... Qa7+
{[%clk 0:00:29.9]} 64. Kf6 {[%clk 0:00:05.2]} 64... Qb6+ {[%clk 0:00:28.9]} 65.
Kg7 {[%clk 0:00:03.3]} 65... Qc7+ {[%clk 0:00:29.1]} 66. Kg6 {[%clk 0:00:02.3]}
66... Ke6 {[%clk 0:00:28.4]} 67. Kh6 {[%clk 0:00:02]} 67... Qf4 {[%clk
0:00:24.2]} 68. Kg6 {[%clk 0:00:02.2]} 68... Qf7+ {[%clk 0:00:23.5]} 69. Kh6
{[%clk 0:00:02.8]} 69... Qg8 {[%clk 0:00:23.2]} 70. g6 {[%clk 0:00:02.7]} 70...
Kf6 {[%clk 0:00:23.1]} 0-1

[Event "*** SCC Grand Prix: Titled Tuesday Blitz"]
[Site "Chess.com"]
[Date "2020.07.07"]
[Round "3"]
[White "GracefulYear"]
[Black "vesalhamedinia"]
[Result "0-1"]
[WhiteElo "2423"]
[BlackElo "2200"]
[TimeControl "180+1"]
[EndTime "10:30:20 PDT"]
[Termination "vesalhamedinia won by checkmate"]

1. d4 {[%clk 0:03:00.9]} 1... d5 {[%clk 0:02:59.8]} 2. c4 {[%clk 0:03:00.6]}
2... e6 {[%clk 0:02:57.9]} 3. Nf3 {[%clk 0:03:01.5]} 3... Nf6 {[%clk 0:02:57.6]}
4. g3 {[%clk 0:02:59.3]} 4... Bb4+ {[%clk 0:02:57]} 5. Bd2 {[%clk 0:02:59]} 5...
Be7 {[%clk 0:02:56.9]} 6. Bg2 {[%clk 0:02:59.2]} 6... O-O {[%clk 0:02:57.4]} 7.
O-O {[%clk 0:02:59.8]} 7... Nbd7 {[%clk 0:02:57.3]} 8. Qc2 {[%clk 0:03:00.4]}
8... c6 {[%clk 0:02:56.4]} 9. Nc3 {[%clk 0:02:59]} 9... dxc4 {[%clk 0:02:56.2]}
10. e4 {[%clk 0:02:57]} 10... a5 {[%clk 0:02:54.1]} 11. a4 {[%clk 0:02:56.4]}
11... Nb6 {[%clk 0:02:42.3]} 12. Rfd1 {[%clk 0:02:49.6]} 12... h6 {[%clk
0:02:24.7]} 13. Be3 {[%clk 0:02:46.3]} 13... Ng4 {[%clk 0:02:19.7]} 14. Bf4
{[%clk 0:02:42.3]} 14... f5 {[%clk 0:02:14.4]} 15. exf5 {[%clk 0:02:35.4]} 15...
exf5 {[%clk 0:02:14]} 16. h3 {[%clk 0:02:35.3]} 16... Nf6 {[%clk 0:02:13.9]} 17.
Ne5 {[%clk 0:02:35.8]} 17... Nfd5 {[%clk 0:02:10.3]} 18. Ng6 {[%clk 0:02:32.6]}
18... Re8 {[%clk 0:01:58.6]} 19. Nxe7+ {[%clk 0:02:26.8]} 19... Rxe7 {[%clk
0:01:58.9]} 20. Be5 {[%clk 0:02:27.3]} 20... Be6 {[%clk 0:01:57.6]} 21. Re1
{[%clk 0:02:23.7]} 21... Qd7 {[%clk 0:01:52.3]} 22. Ne2 {[%clk 0:02:16.4]} 22...
Nb4 {[%clk 0:01:45.4]} 23. Qd2 {[%clk 0:02:04.3]} 23... Nd3 {[%clk 0:01:44.6]}
24. Red1 {[%clk 0:02:01.7]} 24... Rd8 {[%clk 0:01:34.1]} 25. Nf4 {[%clk
0:01:54.4]} 25... Nxe5 {[%clk 0:01:28.7]} 26. Nxe6 {[%clk 0:01:51]} 26... Rxe6
{[%clk 0:01:27]} 27. Qxa5 {[%clk 0:01:50.6]} 27... Nd3 {[%clk 0:01:03.8]} 28.
Qxb6 {[%clk 0:01:46.7]} 28... Qxd4 {[%clk 0:00:59.5]} 29. Qxd4 {[%clk 0:01:42]}
29... Rxd4 {[%clk 0:01:00.4]} 30. a5 {[%clk 0:01:27.3]} 30... Re2 {[%clk
0:00:56]} 31. Bf1 {[%clk 0:01:25.6]} 31... Rxb2 {[%clk 0:00:52.6]} 32. a6 {[%clk
0:01:19.5]} 32... bxa6 {[%clk 0:00:51.3]} 33. Rxa6 {[%clk 0:01:20.4]} 33... c5
{[%clk 0:00:51.2]} 34. Ra7 {[%clk 0:01:10.9]} 34... Kh7 {[%clk 0:00:24.3]} 35.
h4 {[%clk 0:01:03.9]} 35... Nxf2 {[%clk 0:00:18.8]} 36. Re1 {[%clk 0:00:59.6]}
36... Ne4 {[%clk 0:00:18.1]} 37. Bh3 {[%clk 0:00:49.9]} 37... Nxg3 {[%clk
0:00:15.5]} 38. h5 {[%clk 0:00:35]} 38... c3 {[%clk 0:00:14.9]} 39. Bf1 {[%clk
0:00:21.1]} 39... Rg4 {[%clk 0:00:12.5]} 40. Re8 {[%clk 0:00:15.7]} 40... Nxh5+
{[%clk 0:00:11.4]} 41. Kh1 {[%clk 0:00:14.5]} 41... Ng3+ {[%clk 0:00:11.4]} 42.
Kg1 {[%clk 0:00:13.9]} 42... Ne4+ {[%clk 0:00:11.5]} 43. Kh1 {[%clk 0:00:12.2]}
43... Nf2+ {[%clk 0:00:11.5]} 44. Kh2 {[%clk 0:00:13.1]} 44... Ne4+ {[%clk
0:00:09.8]} 45. Kh1 {[%clk 0:00:13]} 45... Nf6 {[%clk 0:00:09.4]} 46. Rc8 {[%clk
0:00:09.2]} 46... Rf2 {[%clk 0:00:08.9]} 47. Raa8 {[%clk 0:00:03]} 47... Rxf1+
{[%clk 0:00:08.3]} 48. Kh2 {[%clk 0:00:02.9]} 48... Rf2+ {[%clk 0:00:08.7]} 49.
Kh1 {[%clk 0:00:03.8]} 49... c2 {[%clk 0:00:09.2]} 50. Rh8+ {[%clk 0:00:03]}
50... Kg6 {[%clk 0:00:09.6]} 51. Rxh6+ {[%clk 0:00:03.9]} 51... Kxh6 {[%clk
0:00:08.6]} 52. Rh8+ {[%clk 0:00:04.4]} 52... Kg6 {[%clk 0:00:08.9]} 53. Rh6+
{[%clk 0:00:05.3]} 53... Kf7 {[%clk 0:00:06.1]} 54. Rxf6+ {[%clk 0:00:05.6]}
54... Kg8 {[%clk 0:00:05.7]} 55. Rf8+ {[%clk 0:00:05.6]} 55... Kh7 {[%clk
0:00:06]} 56. Rh8+ {[%clk 0:00:06.2]} 56... Kg6 {[%clk 0:00:06.4]} 57. Rh6+
{[%clk 0:00:06.7]} 57... Kg5 {[%clk 0:00:06.8]} 58. Rh5+ {[%clk 0:00:07.1]}
58... Kf4 {[%clk 0:00:07.3]} 59. Rxf5+ {[%clk 0:00:06.9]} 59... Kg3 {[%clk
0:00:07.6]} 60. Rxc5 {[%clk 0:00:02.3]} 60... Rf1# {[%clk 0:00:07.1]} 0-1

[Event "*** SCC Grand Prix: Titled Tuesday Blitz"]
[Site "Chess.com"]
[Date "2020.07.07"]
[Round "3"]
[White "hectorfiori"]
[Black "ehrenfeld"]
[Result "1-0"]
[WhiteElo "2331"]
[BlackElo "2511"]
[TimeControl "180+1"]
[EndTime "10:30:21 PDT"]
[Termination "hectorfiori won on time"]

1. e4 {[%clk 0:03:00.9]} 1... e5 {[%clk 0:02:53.2]} 2. Nf3 {[%clk 0:03:00.5]}
2... Nc6 {[%clk 0:02:52.4]} 3. d4 {[%clk 0:02:59.7]} 3... exd4 {[%clk
0:02:51.8]} 4. Nxd4 {[%clk 0:03:00.6]} 4... Bc5 {[%clk 0:02:51.6]} 5. Be3 {[%clk
0:02:59.5]} 5... Qf6 {[%clk 0:02:50.7]} 6. Nxc6 {[%clk 0:02:58]} 6... Bxe3
{[%clk 0:02:45]} 7. fxe3 {[%clk 0:02:58.9]} 7... dxc6 {[%clk 0:02:14.7]} 8. Nc3
{[%clk 0:02:56.5]} 8... Nh6 {[%clk 0:02:07.9]} 9. Qd4 {[%clk 0:02:44.3]} 9...
Qh4+ {[%clk 0:01:59.8]} 10. g3 {[%clk 0:02:42.2]} 10... Qg5 {[%clk 0:01:59.8]}
11. O-O-O {[%clk 0:02:19.6]} 11... Ng4 {[%clk 0:01:47.3]} 12. h4 {[%clk
0:02:03.8]} 12... Qxe3+ {[%clk 0:01:45.7]} 13. Qxe3 {[%clk 0:01:52.9]} 13...
Nxe3 {[%clk 0:01:45.4]} 14. Rd3 {[%clk 0:01:52.9]} 14... Ng4 {[%clk 0:01:39.8]}
15. Rd2 {[%clk 0:01:37.7]} 15... Be6 {[%clk 0:01:31.4]} 16. Na4 {[%clk 0:01:30]}
16... b6 {[%clk 0:01:20.7]} 17. Ba6 {[%clk 0:01:29]} 17... Rb8 {[%clk
0:01:15.1]} 18. b3 {[%clk 0:01:08.6]} 18... Ke7 {[%clk 0:01:11.8]} 19. Be2
{[%clk 0:01:05.5]} 19... Ne5 {[%clk 0:01:10.3]} 20. Rf1 {[%clk 0:00:52.8]} 20...
Rhd8 {[%clk 0:01:09.4]} 21. Rfd1 {[%clk 0:00:52.7]} 21... Rxd2 {[%clk
0:01:08.5]} 22. Rxd2 {[%clk 0:00:53.6]} 22... Rd8 {[%clk 0:01:04]} 23. Rxd8
{[%clk 0:00:53.4]} 23... Kxd8 {[%clk 0:01:04]} 24. Kd2 {[%clk 0:00:54.1]} 24...
Ke7 {[%clk 0:01:03.7]} 25. Ke3 {[%clk 0:00:53]} 25... Kd6 {[%clk 0:01:02]} 26.
c4 {[%clk 0:00:49.2]} 26... f6 {[%clk 0:00:54.7]} 27. Kd4 {[%clk 0:00:47.9]}
27... c5+ {[%clk 0:00:52.3]} 28. Ke3 {[%clk 0:00:47.6]} 28... Nc6 {[%clk
0:00:51.8]} 29. a3 {[%clk 0:00:39.8]} 29... Nd4 {[%clk 0:00:36.4]} 30. Bd1
{[%clk 0:00:39.4]} 30... Bd7 {[%clk 0:00:28.1]} 31. Nc3 {[%clk 0:00:38.8]} 31...
a6 {[%clk 0:00:22.8]} 32. Nd5 {[%clk 0:00:32.2]} 32... Bc6 {[%clk 0:00:20.7]}
33. Nf4 {[%clk 0:00:23.1]} 33... Be8 {[%clk 0:00:17]} 34. Nd5 {[%clk 0:00:22.6]}
34... Bf7 {[%clk 0:00:16.3]} 35. Nf4 {[%clk 0:00:21]} 35... b5 {[%clk
0:00:15.6]} 36. Kd3 {[%clk 0:00:16.9]} 36... Nc6 {[%clk 0:00:11.1]} 37. Kc3
{[%clk 0:00:13.4]} 37... b4+ {[%clk 0:00:09.5]} 38. axb4 {[%clk 0:00:13.2]}
38... cxb4+ {[%clk 0:00:09.5]} 39. Kd3 {[%clk 0:00:13]} 39... Ne5+ {[%clk
0:00:08.2]} 40. Ke3 {[%clk 0:00:13.2]} 40... a5 {[%clk 0:00:07.3]} 41. Ne2
{[%clk 0:00:10.7]} 41... a4 {[%clk 0:00:05.5]} 42. bxa4 {[%clk 0:00:10]} 42...
Nxc4+ {[%clk 0:00:05.3]} 43. Kf4 {[%clk 0:00:09.2]} 43... Ne5 {[%clk 0:00:05.3]}
44. Nd4 {[%clk 0:00:09.3]} 44... c5 {[%clk 0:00:05.2]} 45. Nf5+ {[%clk
0:00:09.5]} 45... Kc6 {[%clk 0:00:05]} 46. Nxg7 {[%clk 0:00:09.9]} 46... c4
{[%clk 0:00:05.4]} 47. Nf5 {[%clk 0:00:09.7]} 47... b3 {[%clk 0:00:05]} 48. Nd4+
{[%clk 0:00:05.4]} 48... Kc5 {[%clk 0:00:04.8]} 49. Ne2 {[%clk 0:00:05.3]} 49...
Kb4 {[%clk 0:00:04.4]} 50. a5 {[%clk 0:00:05.6]} 50... c3 {[%clk 0:00:03.5]} 51.
Nxc3 {[%clk 0:00:05.1]} 51... Kxc3 {[%clk 0:00:02.9]} 52. a6 {[%clk 0:00:05.5]}
52... Nc6 {[%clk 0:00:03]} 53. Bxb3 {[%clk 0:00:04.1]} 53... Kxb3 {[%clk
0:00:02.6]} 54. Kf5 {[%clk 0:00:04.7]} 54... Kc4 {[%clk 0:00:02.1]} 55. Kxf6
{[%clk 0:00:05]} 55... Bg6 {[%clk 0:00:02.6]} 56. e5 {[%clk 0:00:05.3]} 56...
Kd5 {[%clk 0:00:02.5]} 57. e6 {[%clk 0:00:05.6]} 57... Kd6 {[%clk 0:00:02.7]}
58. e7 {[%clk 0:00:04]} 58... Nxe7 {[%clk 0:00:01.5]} 59. a7 {[%clk 0:00:03.7]}
59... Be4 {[%clk 0:00:01.8]} 60. g4 {[%clk 0:00:02.1]} 1-0

[Event "*** SCC Grand Prix: Titled Tuesday Blitz"]
[Site "Chess.com"]
[Date "2020.07.07"]
[Round "3"]
[White "Tenamu"]
[Black "SzMM19"]
[Result "0-1"]
[WhiteElo "2382"]
[BlackElo "2577"]
[TimeControl "180+1"]
[EndTime "10:30:23 PDT"]
[Termination "SzMM19 won by checkmate"]

1. d4 {[%clk 0:03:00.9]} 1... Nf6 {[%clk 0:02:59.3]} 2. Nc3 {[%clk 0:03:00.9]}
2... d5 {[%clk 0:02:59.1]} 3. Bf4 {[%clk 0:03:00.6]} 3... c5 {[%clk 0:02:59.5]}
4. e3 {[%clk 0:02:59.2]} 4... cxd4 {[%clk 0:02:59.6]} 5. exd4 {[%clk 0:02:59]}
5... a6 {[%clk 0:02:59.9]} 6. Nf3 {[%clk 0:02:57.8]} 6... Nc6 {[%clk 0:03:00.4]}
7. Be2 {[%clk 0:02:51.8]} 7... e6 {[%clk 0:03:01.3]} 8. O-O {[%clk 0:02:47.6]}
8... Bd6 {[%clk 0:03:01.1]} 9. Bg3 {[%clk 0:02:43.6]} 9... O-O {[%clk
0:03:00.5]} 10. Ne5 {[%clk 0:02:41.6]} 10... Qc7 {[%clk 0:03:00.4]} 11. f4
{[%clk 0:02:36]} 11... Nxd4 {[%clk 0:02:59.3]} 12. Bd3 {[%clk 0:02:30]} 12...
Nc6 {[%clk 0:02:52.2]} 13. Qe2 {[%clk 0:02:27.6]} 13... Qb6+ {[%clk 0:02:34.5]}
14. Kh1 {[%clk 0:02:22.2]} 14... Qxb2 {[%clk 0:02:24.3]} 15. Qf3 {[%clk
0:02:02.1]} 15... Nd4 {[%clk 0:02:06.7]} 16. Qe3 {[%clk 0:01:57.2]} 16... Nxc2
{[%clk 0:01:42]} 17. Qd2 {[%clk 0:01:32.3]} 17... Bb4 {[%clk 0:01:40.3]} 18.
Bxc2 {[%clk 0:01:15.3]} 18... Qxc3 {[%clk 0:01:34.9]} 19. Qe2 {[%clk 0:01:14.1]}
19... Qd2 {[%clk 0:01:28.7]} 20. Qxd2 {[%clk 0:00:52.8]} 20... Bxd2 {[%clk
0:01:29.6]} 21. Rab1 {[%clk 0:00:53.3]} 21... Nh5 {[%clk 0:01:08.8]} 22. Rb3
{[%clk 0:00:23.3]} 22... Nxg3+ {[%clk 0:01:01.2]} 23. Rxg3 {[%clk 0:00:22.4]}
23... f6 {[%clk 0:00:49.5]} 24. Ng4 {[%clk 0:00:21.1]} 24... e5 {[%clk
0:00:30.1]} 25. fxe5 {[%clk 0:00:14.9]} 25... Bxg4 {[%clk 0:00:26.6]} 26. exf6
{[%clk 0:00:14.8]} 26... h5 {[%clk 0:00:10.3]} 27. h3 {[%clk 0:00:12.3]} 27...
Rxf6 {[%clk 0:00:06.3]} 28. Rxf6 {[%clk 0:00:11.6]} 28... gxf6 {[%clk
0:00:07.2]} 29. hxg4 {[%clk 0:00:12.3]} 29... h4 {[%clk 0:00:07.6]} 30. Rf3
{[%clk 0:00:11.8]} 30... Bg5 {[%clk 0:00:07.2]} 31. Bb3 {[%clk 0:00:11.1]} 31...
Kg7 {[%clk 0:00:06.8]} 32. Bxd5 {[%clk 0:00:10.4]} 32... Rc8 {[%clk 0:00:05.6]}
33. Bxb7 {[%clk 0:00:10.2]} 33... Rc1+ {[%clk 0:00:05.4]} 34. Kh2 {[%clk
0:00:10.6]} 34... a5 {[%clk 0:00:04.8]} 35. Ra3 {[%clk 0:00:09.6]} 35... Rc5
{[%clk 0:00:04.3]} 36. Bf3 {[%clk 0:00:08.1]} 36... Bf4+ {[%clk 0:00:04.1]} 37.
Kh3 {[%clk 0:00:07.4]} 37... Rc1 {[%clk 0:00:04]} 38. g3 {[%clk 0:00:07.6]}
38... hxg3 {[%clk 0:00:03.6]} 39. Bg2 {[%clk 0:00:07]} 39... Rc5 {[%clk
0:00:02.5]} 40. Rf3 {[%clk 0:00:06.5]} 40... Be5 {[%clk 0:00:01.8]} 41. Ra3
{[%clk 0:00:05.6]} 41... Rc8 {[%clk 0:00:02.3]} 42. Bf3 {[%clk 0:00:03.4]} 42...
Rh8+ {[%clk 0:00:01.9]} 43. Kg2 {[%clk 0:00:03.6]} 43... Rh2+ {[%clk 0:00:02.8]}
44. Kg1 {[%clk 0:00:03.8]} 44... Bd4+ {[%clk 0:00:02.9]} 45. Kf1 {[%clk
0:00:04.1]} 45... Rf2+ {[%clk 0:00:03.8]} 46. Ke1 {[%clk 0:00:03.9]} 46... Rxf3
{[%clk 0:00:04.3]} 47. Rxf3 {[%clk 0:00:03.4]} 47... g2 {[%clk 0:00:04.9]} 48.
Rg3 {[%clk 0:00:03.6]} 48... g1=Q+ {[%clk 0:00:05]} 49. Rxg1 {[%clk 0:00:04.5]}
49... Bxg1 {[%clk 0:00:05.9]} 50. Ke2 {[%clk 0:00:05.2]} 50... Bb6 {[%clk
0:00:06.8]} 51. Kf3 {[%clk 0:00:04.7]} 51... Kg6 {[%clk 0:00:07.7]} 52. Kf4
{[%clk 0:00:04.2]} 52... Bc7+ {[%clk 0:00:08.6]} 53. Kf3 {[%clk 0:00:03.5]}
53... Kg5 {[%clk 0:00:09.5]} 54. a4 {[%clk 0:00:03.7]} 54... Bd6 {[%clk
0:00:09.7]} 55. Ke4 {[%clk 0:00:03.8]} 55... Kxg4 {[%clk 0:00:10.6]} 56. Kd5
{[%clk 0:00:04.5]} 56... Bb4 {[%clk 0:00:10.9]} 57. Ke6 {[%clk 0:00:04.6]} 57...
f5 {[%clk 0:00:11.8]} 58. Kd7 {[%clk 0:00:05.3]} 58... f4 {[%clk 0:00:12.7]} 59.
Kc6 {[%clk 0:00:06.2]} 59... f3 {[%clk 0:00:13.6]} 60. Kb5 {[%clk 0:00:07.1]}
60... f2 {[%clk 0:00:14.5]} 61. Ka6 {[%clk 0:00:08]} 61... f1=Q+ {[%clk
0:00:14.6]} 62. Kb7 {[%clk 0:00:08.9]} 62... Qf6 {[%clk 0:00:14.9]} 63. Ka8
{[%clk 0:00:09.8]} 63... Kf5 {[%clk 0:00:15.5]} 64. Ka7 {[%clk 0:00:10.7]} 64...
Ke6 {[%clk 0:00:16.4]} 65. Kb7 {[%clk 0:00:11]} 65... Kd6 {[%clk 0:00:16.4]} 66.
Kb8 {[%clk 0:00:11.9]} 66... Kc6 {[%clk 0:00:16.3]} 67. Ka8 {[%clk 0:00:12.8]}
67... Kb6 {[%clk 0:00:16.5]} 68. Kb8 {[%clk 0:00:12.9]} 68... Qf8# {[%clk
0:00:17.4]} 0-1